[Event "ETCC Open 2023"]
[Site "Budva"]
[Date "2023.11.14"]
[Round "4.74"]
[White "Morrison, Graham"]
[Black "Uruci, Endrit"]
[Result "1/2-1/2"]
[ECO "E16"]
[WhiteElo "2221"]
[BlackElo "2315"]
[Annotator "ChessBase"]
[PlyCount "146"]
[EventDate "2023.11.10"]
[EventType "team-tourn"]
[EventCountry "MNE"]
[SourceTitle "playchess.com"]
[Source "ChessBase"]
[SourceQuality "1"]
[WhiteTeam "Scotland"]
[BlackTeam "Kosovo"]
[WhiteTeamCountry "SCO"]
[BlackTeamCountry "KOS"]
[TimeControl "40/5400+30:1800+30"]

1. d4 {[%emt 0:00:04]} Nf6 {[%emt 0:00:40]} 2. c4 {[%emt 0:00:10]} e6 {[%emt 0:00:27]} 3. Nf3 {[%emt 0:00:10]} b6 {[%emt 0:00:43]} 4. g3 {[%emt 0:00:09]} Bb7 {[%emt 0:00:46]} 5. Bg2 {[%emt 0:00:10]} Bb4+ {[%emt 0:00:46]} 6. Bd2 {[%emt 0:00:12]} Qe7 {[%emt 0:00:16]} 7. O-O {[%emt 0:00:23]} O-O {[%emt 0:00:53]} 8. Bf4 {[%emt 0:07:30]} Bd6 {[%emt 0:01:01]} 9. Bxd6 {[%emt 0:00:30]} cxd6 {[%emt 0:00:29]} 10. d5 {[%emt 0:03:53]} Rc8 {[%emt 0:04:15]} 11. Nfd2 {[%emt 0:08:35]} b5 {[%emt 0:18:57]} 12. e4 {[%emt 0:20:44]} bxc4 {[%emt 0:02:30]} 13. Nc3 {[%emt 0:00:10]} Na6 {[%emt 0:00:39]} 14. Re1 {[%emt 0:07:16]} Nb4 {[%emt 0:06:06]} 15. Bf1 {[%emt 0:06:47]} Nd3 {[%emt 0:13:35]} 16. Bxd3 {[%emt 0:00:13]} cxd3 {[%emt 0:00:06]} 17. Re3 {[%emt 0:00:25]} Rab8 {[%emt 0:00:13]} 18. Rxd3 {[%emt 0:06:24]} Ba6 {[%emt 0:06:19]} 19. Re3 {[%emt 0:01:14]} Rxb2 {[%emt 0:07:43]} 20. Rb1 {[%emt 0:09:48]} Rxb1 {[%emt 0:01:18]} 21. Ndxb1 {[%emt 0:00:22]} Qd8 {[%emt 0:01:20]} 22. h3 {[%emt 0:12:05]} h5 {[%emt 0:01:23]} 23. Qd4 {[%emt 0:04:57]} Qc7 {[%emt 0:02:25]} 24. Nd2 {[%emt 0:00:53]} Kf8 {[%emt 0:02:58]} 25. Qa4 {[%emt 0:01:58]} Qb6 {[%emt 0:01:11]} 26. Nb3 {[%emt 0:01:29]} h4 {[%emt 0:04:31]} 27. g4 {[%emt 0:00:24]} Rc4 {[%emt 0:01:00]} 28. Qa5 {[%emt 0:00:29]} Qxa5 {[%emt 0:01:12]} 29. Nxa5 {[%emt 0:00:08]} Rb4 {[%emt 0:00:07]} 30. Nb3 {[%emt 0:04:02]} Bc4 {[%emt 0:02:34]} 31. g5 {[%emt 0:00:13]} Nh5 {[%emt 0:01:19]} 32. Nd2 {[%emt 0:00:59]} Bxa2 {[%emt 0:00:59]} 33. Nxa2 {[%emt 0:00:25]} Rb2 {[%emt 0:00:06]} 34. Nc4 {[%emt 0:00:25]} Rxa2 {[%emt 0:00:12]} 35. Nxd6 {[%emt 0:00:09]} f6 {[%emt 0:03:27]} 36. Rb3 {[%emt 0:01:37]} Ke7 {[%emt 0:00:33]} 37. Nc8+ {[%emt 0:00:46]} Kd8 {[%emt 0:00:05]} 38. Nd6 {[%emt 0:01:27]} Ra6 {[%emt 0:01:16]} 39. gxf6 {[%emt 0:00:46]} gxf6 {[%emt 0:00:25]} 40. Nc4 {[%emt 0:00:42]} Ra1+ {[%emt 0:02:28]} 41. Kh2 {[%emt 0:30:59]} Rc1 {[%emt 0:30:11]} 42. Ne3 {[%emt 0:00:00]} Nf4 {[%emt 0:00:00]} 43. Ra3 {[%emt 0:00:00]} Rc7 {[%emt 0:00:00]} 44. Ng2 {[%emt 0:00:00]} Ng6 {[%emt 0:00:00]} 45. f4 {[%emt 0:00:00]} Rc4 {[%emt 0:00:00]} 46. dxe6 {[%emt 0:00:00]} dxe6 {[%emt 0:00:00]} 47. f5 {[%emt 0:00:00]} exf5 {[%emt 0:00:00]} 48. exf5 {[%emt 0:00:00]} Ne5 {[%emt 0:00:00]} 49. Ne3 {[%emt 0:00:00]} Re4 {[%emt 0:00:00]} 50. Ng4 {[%emt 0:00:00]} Re2+ {[%emt 0:00:00]} 51. Kg1 {[%emt 0:00:00]} Nxg4 {[%emt 0:00:00]} 52. hxg4 {[%emt 0:00:00]} Re7 {[%emt 0:00:00]} 53. Kg2 {[%emt 0:00:00]} Kc8 {[%emt 0:00:00]} 54. Kh3 {[%emt 0:01:03]} Kb7 {[%emt 0:00:00]} 55. Kxh4 {[%emt 0:00:48]} Rh7+ {[%emt 0:00:00]} 56. Kg3 {[%emt 0:00:38]} Rg7 {[%emt 0:00:00]} 57. Ra1 {[%emt 0:02:46]} Kb6 {[%emt 0:00:00]} 58. Rb1+ {[%emt 0:00:08]} Kc5 {[%emt 0:00:00]} 59. Ra1 {[%emt 0:00:11]} Kb4 {[%emt 0:00:00]} 60. Rb1+ {[%emt 0:00:24]} Kc4 {[%emt 0:00:00]} 61. Ra1 {[%emt 0:00:42]} Kb3 {[%emt 0:00:00]} 62. Ra6 {[%emt 0:00:34]} Rf7 {[%emt 0:00:00]} 63. g5 {[%emt 0:00:28]} fxg5 {[%emt 0:00:00]} 64. Kg4 {[%emt 0:00:05]} Kb4 {[%emt 0:00:00]} 65. Kxg5 {[%emt 0:00:22]} Kb5 {[%emt 0:00:00]} 66. Ra1 {[%emt 0:00:08]} a5 {[%emt 0:00:00]} 67. Kg6 {[%emt 0:00:15]} Rd7 {[%emt 0:00:00]} 68. f6 {[%emt 0:00:10]} a4 {[%emt 0:00:00]} 69. f7 {[%emt 0:00:10]} Rd8 {[%emt 0:00:00]} 70. Kg7 {[%emt 0:00:08]} Kb4 {[%emt 0:00:03]} 71. f8=Q+ {[%emt 0:00:10]} Rxf8 {[%emt 0:00:08]} 72. Kxf8 {[%emt 0:00:06]} a3 {[%emt 0:00:11]} 73. Rxa3 {[%emt 0:00:28]} Kxa3 {[%emt 0:29:14]} 1/2-1/2

[Event "ETCC Open 2023"]
[Site "Budva"]
[Date "2023.11.14"]
[Round "4.75"]
[White "Asllani, Muhamet"]
[Black "Mitchell, Martin"]
[Result "1-0"]
[ECO "A46"]
[WhiteElo "2216"]
[BlackElo "2186"]
[Annotator "ChessBase"]
[PlyCount "69"]
[EventDate "2023.11.10"]
[EventType "team-tourn"]
[EventCountry "MNE"]
[SourceTitle "playchess.com"]
[Source "ChessBase"]
[SourceQuality "1"]
[WhiteTeam "Kosovo"]
[BlackTeam "Scotland"]
[WhiteTeamCountry "KOS"]
[BlackTeamCountry "SCO"]
[TimeControl "40/5400+30:1800+30"]

1. d4 {[%emt 0:00:10]} Nf6 {[%emt 0:00:48]} 2. Nf3 {[%emt 0:00:07]} e6 {[%emt 0:02:23]} 3. Bg5 {[%emt 0:00:07]} h6 {[%emt 0:00:36]} 4. Bh4 {[%emt 0:00:07]} c5 {[%emt 0:01:00]} 5. e3 {[%emt 0:02:08]} b6 {[%emt 0:00:21]} 6. Nbd2 {[%emt 0:00:28]} Bb7 {[%emt 0:03:38]} 7. c3 {[%emt 0:00:31]} Be7 {[%emt 0:00:59]} 8. Bd3 {[%emt 0:00:15]} d5 {[%emt 0:03:28]} 9. Ne5 {[%emt 0:00:20]} O-O {[%emt 0:25:18]} 10. g4 {[%emt 0:02:04]} Ne4 {[%emt 0:11:25]} 11. Bg3 {[%emt 0:02:53]} Nd7 {[%emt 0:03:22]} 12. Nxd7 {[%emt 0:06:08]} Qxd7 {[%emt 0:01:25]} 13. f3 {[%emt 0:00:16]} Nxg3 {[%emt 0:02:36]} 14. hxg3 {[%emt 0:00:08]} cxd4 {[%emt 0:12:29]} 15. cxd4 {[%emt 0:00:21]} Bd6 {[%emt 0:03:57]} 16. f4 {[%emt 0:00:22]} f6 {[%emt 0:01:33]} 17. Nf3 {[%emt 0:01:44]} e5 {[%emt 0:03:32]} 18. Bf5 {[%emt 0:00:29]} Qe7 {[%emt 0:04:04]} 19. Kf2 {[%emt 0:00:16]} e4 {[%emt 0:01:04]} 20. Nh4 {[%emt 0:00:10]} Qe8 {[%emt 0:04:12]} 21. Qb3 {[%emt 0:01:00]} Rc8 {[%emt 0:04:31]} 22. Bxc8 {[%emt 0:00:27]} Qxc8 {[%emt 0:00:05]} 23. Nf5 {[%emt 0:03:01]} Qe6 {[%emt 0:00:53]} 24. Rac1 {[%emt 0:00:44]} Bb8 {[%emt 0:00:34]} 25. Rc3 {[%emt 0:02:56]} g6 {[%emt 0:00:58]} 26. Nxh6+ {[%emt 0:01:56]} Kg7 {[%emt 0:00:05]} 27. Qa3 {[%emt 0:02:27]} Rh8 {[%emt 0:01:06]} 28. Nf5+ {[%emt 0:03:33]} gxf5 {[%emt 0:00:09]} 29. Rxh8 {[%emt 0:00:09]} Kxh8 {[%emt 0:00:04]} 30. Qf8+ {[%emt 0:00:15]} Qg8 {[%emt 0:00:12]} 31. Qxf6+ {[%emt 0:00:15]} Qg7 {[%emt 0:00:31]} 32. Qxf5 {[%emt 0:00:42]} Qh6 {[%emt 0:01:01]} 33. Kg2 {[%emt 0:01:03]} Ba6 {[%emt 0:00:10]} 34. Rc8+ {[%emt 0:02:30]} Kg7 {[%emt 0:00:07]} 35. Qd7+ {[%emt 0:00:33]} 1-0

[Event "ETCC Open 2023"]
[Site "Budva"]
[Date "2023.11.14"]
[Round "4.76"]
[White "Grant, Jonathan I M"]
[Black "Saraci, Korab"]
[Result "0-1"]
[ECO "A28"]
[WhiteElo "2150"]
[BlackElo "2200"]
[Annotator "ChessBase"]
[PlyCount "54"]
[EventDate "2023.11.10"]
[EventType "team-tourn"]
[EventCountry "MNE"]
[SourceTitle "playchess.com"]
[Source "ChessBase"]
[SourceQuality "1"]
[WhiteTeam "Scotland"]
[BlackTeam "Kosovo"]
[WhiteTeamCountry "SCO"]
[BlackTeamCountry "KOS"]
[TimeControl "40/5400+30:1800+30"]

1. c4 {[%emt 0:00:02]} e5 {[%emt 0:00:06]} 2. Nc3 {[%emt 0:00:19]} Bb4 {[%emt 0:00:05]} 3. Qc2 {[%emt 0:01:38]} Nf6 {[%emt 0:01:11]} 4. Nf3 {[%emt 0:01:11]} Nc6 {[%emt 0:02:03]} 5. e3 {[%emt 0:00:13]} O-O {[%emt 0:03:00]} 6. Nd5 {[%emt 0:01:04]} Bc5 {[%emt 0:02:10]} 7. Qf5 {[%emt 0:06:10]} Nxd5 {[%emt 0:02:37]} 8. cxd5 {[%emt 0:01:40]} d6 {[%emt 0:00:28]} 9. Qb1 {[%emt 0:04:25]} Ne7 {[%emt 0:02:50]} 10. b4 {[%emt 0:02:38]} Bb6 {[%emt 0:00:44]} 11. Bc4 {[%emt 0:01:18]} Bg4 {[%emt 0:07:12]} 12. Bb2 {[%emt 0:05:53]} Ng6 {[%emt 0:06:28]} 13. Be2 {[%emt 0:08:38]} f5 {[%emt 0:03:14]} 14. Qd1 {[%emt 0:16:09]} Bxf3 {[%emt 0:18:19]} 15. Bxf3 {[%emt 0:02:48]} Qg5 {[%emt 0:04:18]} 16. g3 {[%emt 0:09:42]} f4 {[%emt 0:04:16]} 17. h4 {[%emt 0:06:11]} Qf6 {[%emt 0:07:49]} 18. gxf4 {[%emt 0:14:44]} Nxf4 {[%emt 0:00:29]} 19. exf4 {[%emt 0:01:06]} Qxf4 {[%emt 0:00:08]} 20. Rh3 {[%emt 0:01:12]} e4 {[%emt 0:04:17]} 21. Rg3 {[%emt 0:00:47]} Rf7 {[%emt 0:00:37]} 22. Qe2 {[%emt 0:06:44]} exf3 {[%emt 0:01:25]} 23. Qe6 {[%emt 0:00:41]} Bxf2+ {[%emt 0:00:47]} 24. Kxf2 {[%emt 0:00:52]} Qxd2+ {[%emt 0:00:10]} 25. Kf1 {[%emt 0:00:51]} Qxb2 {[%emt 0:00:13]} 26. Re1 {[%emt 0:04:33]} Qh2 {[%emt 0:00:53]} 27. Qg4 {[%emt 0:01:33]} f2 {[%emt 0:00:23]} 0-1

[Event "ETCC Open 2023"]
[Site "Budva"]
[Date "2023.11.15"]
[Round "5.1"]
[White "Martirosyan, Haik M."]
[Black "Keymer, Vincent"]
[Result "0-1"]
[ECO "D41"]
[WhiteElo "2708"]
[BlackElo "2721"]
[Annotator "TA"]
[PlyCount "80"]
[EventDate "2023.11.10"]
[EventType "team-tourn"]
[EventCountry "MNE"]
[SourceTitle "playchess.com"]
[Source "ChessBase"]
[SourceQuality "1"]
[WhiteTeam "Armenia"]
[BlackTeam "Germany"]
[WhiteTeamCountry "ARM"]
[BlackTeamCountry "GER"]
[TimeControl "40/5400+30:1800+30"]

{[%evp 11,80,21,21,17,37,-5,24,40,52,46,26,29,21,21,22,21,25,25,50,21,43,0,0,0,0,0,0,0,0,0,0,0,31,35,38,29,45,45,39,52,58,62,67,49,51,12,11,0,5,0,0,0,0,-1,-7,-27,-34,-133,-139,-141,-145,-124,-136,-125,-139,-1273,-43,-1227,-1225,-12829,-6011]} 1. d4 {[%emt 0:00:03]} Nf6 {[%emt 0:00:05]} 2. c4 {[%emt 0:00:07]} e6 {[%emt 0:00:03]} 3. Nf3 {[%emt 0:00:04]} d5 {[%emt 0:00:04]} 4. Nc3 {[%emt 0:00:06]} c5 {[%emt 0:00:03]} 5. cxd5 {[%emt 0:00:06]} cxd4 {[%emt 0:00:05]} 6. Qxd4 {[%emt 0:01:13]} exd5 {[%emt 0:00:05]} 7. e4 {[%emt 0:02:23] D41: Queen's Gambit Declined: Semi-Tarrasch with 5 cxd5.} dxe4 {[%emt 0:00:06]} 8. Qxd8+ {[%emt 0:00:06]} Kxd8 {[%emt 0:00:04]} 9. Ng5 {[%emt 0:00:07][%csl LRe4,LRf7] White has an edge.} Be6 {[%emt 0:00:05]} 10. Nxe6+ {[%emt 0:01:53]} ({Much weaker is} 10. Ngxe4 Nxe4 11. Nxe4 Bb4+ 12. Nc3 (12. Bd2 Nc6 $11) 12... Ke7 $11) 10... fxe6 {[%emt 0:00:05]} 11. Bg5 {[%emt 0:00:18]} h6 {[%emt 0:00:34]} 12. O-O-O+ {[%emt 0:02:49]} Ke7 $1 {[%emt 0:00:22]} 13. Bxf6+ {[%emt 0:00:24]} gxf6 {[%emt 0:00:05]} 14. Nxe4 {[%emt 0:00:12]} Bg7 {[%emt 0:00:45] Black is weak on the light squares} 15. Ng3 {[%emt 0:13:50] [#]} h5 $1 $146 {[%emt 0:00:22][%mdl 8] A top novelty.} ({Predecessor:} 15... f5 16. Bd3 Nc6 17. Rhe1 Be5 18. Nxf5+ exf5 19. f4 Rad8 20. fxe5 Rhf8 21. Re3 Rd5 {½-½ Nepomniachtchi,I (2792)-So,W (2770) FTX Crypto Cup Prelim rapid 2021 (10)}) 16. h4 {[%emt 0:03:49]} (16. Re1 $5 {[%cal Rg3f5]}) 16... Nc6 {[%emt 0:03:24]} 17. Be2 {[%emt 0:05:55]} Rad8 {[%emt 0:04:54]} 18. Nxh5 {[%emt 0:06:58] Rxd8 is the strong threat.} Nd4 {[%emt 0:04:11]} 19. Ng3 {[%emt 0:01:33]} f5 {[%emt 0:13:07]} 20. Bd3 {[%emt 0:03:08]} Rd6 {[%emt 0:13:38]} 21. Kb1 {[%emt 0:02:58]} Be5 {[%emt 0:02:21]} 22. Nf1 {[%emt 0:04:04]} Bf6 {[%emt 0:11:53]} 23. h5 {[%emt 0:02:35]} Bg5 {[%emt 0:12:21]} 24. Ne3 {[%emt 0:11:54]} Nc6 {[%emt 0:03:44]} 25. Be2 {[%emt 0:04:47]} Nd4 {[%emt 0:01:10]} 26. Bf1 {[%emt 0:01:54]} Rdd8 {[%emt 0:03:21]} 27. Bc4 {[%emt 0:02:57]} Kf6 {[%emt 0:02:42]} 28. Rde1 {[%emt 0:03:29]} b5 {[%emt 0:00:50]} 29. Bf1 {[%emt 0:01:06]} a6 {[%emt 0:24:31]} 30. Rh3 {[%emt 0:01:46]} (30. Rc1 {is more complex.} Bf4 31. Rc5 Kg5 32. g3) 30... Bh6 {[%emt 0:00:00]} 31. a3 {[%emt 0:02:54]} Rhg8 {[%emt 0:00:00]} 32. Rh1 {[%emt 0:06:25]} Nb3 {[%emt 0:00:00]} 33. Kc2 {[%emt 0:04:29]} (33. Rh3 {simplifies} Nd2+ 34. Ka2 Nxf1 35. Rxf1 f4 36. Nd1) 33... Nc5 {[%emt 0:00:00][%mdl 1024] Black has compensation.} 34. f3 {[%emt 0:00:51] Repels Ne4} ({White should try} 34. g4 $15) 34... Rd7 $17 {[%emt 0:00:00]} 35. g4 {[%emt 0:01:44]} ({But not} 35. Kb1 Nb3 36. Ka2 Nd2 $15) 35... Rc8 $1 {[%emt 0:00:00]} 36. Kb1 {[%emt 0:00:09] [#]} Na4 $1 {[%emt 0:00:00]} 37. gxf5 {[%emt 0:01:36] Threatens to win with Ng4+.} Bxe3 {[%emt 0:00:00][%mdl 64] Deflection. Black has more active pieces.} 38. Rxe3 $4 {[%emt 0:00:14][%mdl 8192]} ({Not} 38. fxe6 $2 Rd2 39. Re2 Rc1+ 40. Kxc1 Rxe2+ 41. Kd1 Rxb2 $19) (38. Bxb5 $17 axb5 39. Rxe3) 38... Rd1+ $19 {[%emt 0:00:00]} 39. Ka2 {[%emt 0:00:00] [#] aiming for Rd3.} Rc2 $1 {[%emt 0:00:00][%csl Ga4][%cal Rc2b2]} 40. Rxe6+ {[%emt 0:08:10]} Kf7 $1 {[%emt 0:00:00] Weighted Error Value: White=0.40/Black=0.03 (flawless)} (40... Kxf5 $2 41. Bh3+ {[%mdl 64] Discovered Attack} (41. Rxa6 $2 Rxb2#) 41... Kf4 42. Rxd1 $18) 0-1

[Event "ETCC Open 2023"]
[Site "Budva"]
[Date "2023.11.15"]
[Round "5.2"]
[White "Svane, Rasmus"]
[Black "Sargissian, Gabriel"]
[Result "1/2-1/2"]
[ECO "C84"]
[WhiteElo "2647"]
[BlackElo "2686"]
[Annotator "TA"]
[PlyCount "181"]
[EventDate "2023.11.10"]
[EventType "team-tourn"]
[EventCountry "MNE"]
[SourceTitle "playchess.com"]
[Source "ChessBase"]
[SourceQuality "1"]
[WhiteTeam "Germany"]
[BlackTeam "Armenia"]
[WhiteTeamCountry "GER"]
[BlackTeamCountry "ARM"]
[TimeControl "40/5400+30:1800+30"]

{[%evp 21,181,1,0,4,31,18,13,18,16,0,125,125,124,124,121,117,154,118,119,116,121,113,110,114,121,120,124,136,131,117,126,125,137,137,137,137,137,137,137,93,95,104,99,99,96,90,88,88,89,87,88,72,72,72,95,95,97,95,95,95,105,70,83,12,14,8,55,24,38,38,73,29,55,8,52,23,55,38,70,70,73,73,73,73,73,38,38,38,38,38,38,38,38,38,38,12,12,12,12,12,12,12,12,12,12,12,12,12,12,12,12,12,12,12,12,12,12,12,12,12,12,12,12,12,12,12,12,12,12,12,12,12,12,12,12,12,12,12,12,12,12,12,12,12,12,12,12,12,12,12,12,12,12,12,12,12,12,12,12,12,13,13]} 1. e4 {[%emt 0:00:04]} e5 {[%emt 0:01:00]} 2. Nf3 {[%emt 0:00:11]} Nc6 {[%emt 0:00:08]} 3. Bb5 {[%emt 0:00:05]} a6 {[%emt 0:00:10]} 4. Ba4 {[%emt 0:00:03]} Nf6 {[%emt 0:00:09]} 5. O-O {[%emt 0:00:06]} Be7 {[%emt 0:00:53]} 6. d3 {[%emt 0:00:11]} b5 {[%emt 0:00:58]} 7. Bb3 {[%emt 0:00:05]} d6 {[%emt 0:00:52]} 8. c3 {[%emt 0:00:08]} O-O {[%emt 0:00:38]} 9. h3 {[%emt 0:00:05]} Bb7 {[%emt 0:00:45]} 10. a4 {[%emt 0:00:22]} Na5 {[%emt 0:00:46]} 11. Ba2 {[%emt 0:00:06]} c5 {[%emt 0:00:59]} 12. Na3 {[%emt 0:00:06]} h6 {[%emt 0:10:37]} 13. axb5 {[%emt 0:00:52]} axb5 {[%emt 0:01:14]} 14. Nxb5 {[%emt 0:00:10]} c4 $1 {[%emt 0:00:18]} 15. Be3 {[%emt 0:02:01]} (15. b4 {is more complex.} Nb3 16. Bxb3 Rxa1 17. Bxc4 d5 18. exd5 Nxd5 19. Qe2) 15... Qc8 {[%emt 0:34:21]} (15... cxd3 $11 16. b4 (16. Qxd3 Bxe4 17. Qe2 Qd7 $11) 16... Qd7) 16. b4 $16 {[%emt 0:19:10]} cxb3 {[%emt 0:00:56]} 17. Bxb3 {[%emt 0:00:11]} Nxb3 {[%emt 0:00:22]} 18. Qxb3 {[%emt 0:07:35]} Nd7 {[%emt 0:08:56]} 19. Rxa8 {[%emt 0:12:15]} Qxa8 {[%emt 0:01:12]} 20. c4 {[%emt 0:12:35]} Bc6 {[%emt 0:00:35]} 21. Nc7 {[%emt 0:06:49]} Rb8 {[%emt 0:01:36]} 22. Qc2 {[%emt 0:07:47]} Qb7 {[%emt 0:06:05]} 23. Nd5 {[%emt 0:00:25]} Bxd5 {[%emt 0:00:32]} 24. cxd5 {[%emt 0:01:24]} f5 {[%emt 0:03:10]} 25. exf5 {[%emt 0:08:17]} Nf6 {[%emt 0:03:49]} 26. d4 {[%emt 0:07:01]} Rc8 {[%emt 0:22:29]} 27. Rb1 {[%emt 0:03:43]} Rxc2 {[%emt 0:00:00]} 28. Rxb7 {[%emt 0:00:08]} Nxd5 {[%emt 0:00:00]} 29. dxe5 {[%emt 0:01:06]} dxe5 {[%emt 0:00:00]} 30. Nxe5 {[%emt 0:04:13]} Nxe3 {[%emt 0:00:00]} 31. fxe3 {[%emt 0:00:22]} Bd6 {[%emt 0:00:00]} 32. Rb5 {[%emt 0:03:17]} Re2 {[%emt 0:00:00]} 33. Rd5 {[%emt 0:02:10]} Bc7 {[%emt 0:00:00]} 34. Ng6 {[%emt 0:02:34]} Rxe3 {[%emt 0:00:00]} 35. Rd7 {[%emt 0:00:45]} Bb6 {[%emt 0:00:16]} 36. Rb7 {[%emt 0:01:05]} Bc5 {[%emt 0:01:00]} 37. Kf1 {[%emt 0:00:25]} Re8 {[%emt 0:01:47]} 38. g4 {[%emt 0:00:38]} Bd4 {[%emt 0:01:30]} 39. Kg2 {[%emt 0:00:22]} Bf6 {[%emt 0:00:40]} 40. Kf3 {[%emt 0:00:40]} Ra8 {[%emt 0:01:06]} 41. Rb4 {[%emt 0:07:24]} h5 {[%emt 0:05:46]} 42. Rc4 {[%emt 0:09:07]} ({White should play} 42. gxh5 $16 Kh7 43. Nf4) 42... hxg4+ $11 {[%emt 0:01:16]} 43. hxg4 {[%emt 0:00:05]} Bg5 {[%emt 0:00:10]} (43... Kh7 $1 $11 {might be stronger.}) 44. Ne5 {[%emt 0:02:59]} Re8 {[%emt 0:01:12]} 45. Rc5 {[%emt 0:00:23]} Bf6 {[%emt 0:04:32]} 46. Ng6 {[%emt 0:02:31]} Bg5 {[%emt 0:00:14]} 47. Re5 {[%emt 0:11:59]} (47. Ra5 $14) 47... Ra8 {[%emt 0:04:01]} 48. Re4 {[%emt 0:00:00]} Kh7 {[%emt 0:01:09]} 49. Ne5 {[%emt 0:00:00]} Bf6 {[%emt 0:01:23]} 50. Kf4 {[%emt 0:00:00]} Bxe5+ {[%emt 0:00:28]} 51. Rxe5 {[%emt 0:00:00]} Kg8 {[%emt 0:01:34]} 52. Re7 {[%emt 0:00:00]} Kf8 {[%emt 0:00:16]} 53. Rd7 {[%emt 0:00:00]} Ra4+ {[%emt 0:02:08]} 54. Kg5 {[%emt 0:00:00]} Ra1 {[%emt 0:00:41]} 55. Rb7 {[%emt 0:00:57]} Ra2 {[%emt 0:02:53]} 56. Kh4 {[%emt 0:00:22]} Rf2 {[%emt 0:01:32]} 57. Rb5 {[%emt 0:00:08]} Rf1 {[%emt 0:02:54]} 58. g5 {[%emt 0:00:24]} g6 {[%emt 0:02:01]} 59. f6 {[%emt 0:01:47]} Rh1+ {[%emt 0:00:05]} 60. Kg3 {[%emt 0:00:11]} Rg1+ $1 {[%emt 0:00:12]} 61. Kf2 {[%emt 0:00:11]} Rg4 $1 {[%emt 0:00:06]} 62. Kf3 $1 {[%emt 0:00:23]} Rg1 $1 {[%emt 0:00:05]} 63. Rd5 {[%emt 0:00:26]} Kf7 {[%emt 0:00:10]} 64. Re5 {[%emt 0:00:35]} Kf8 {[%emt 0:00:09]} 65. Kf4 {[%emt 0:01:17]} Rf1+ {[%emt 0:00:07]} 66. Ke4 {[%emt 0:00:08]} Rg1 {[%emt 0:00:41]} 67. Kd5 {[%emt 0:00:25]} Kf7 {[%emt 0:01:35]} 68. Kd6 {[%emt 0:00:35]} ({Much less strong is} 68. Re7+ $6 Kf8 $16) 68... Rd1+ {[%emt 0:00:23]} 69. Rd5 {[%emt 0:00:05]} Rg1 {[%emt 0:00:09]} 70. Rc5 {[%emt 0:01:11]} Rd1+ {[%emt 0:00:28]} 71. Ke5 {[%emt 0:00:06]} Re1+ {[%emt 0:00:05]} 72. Kf4 {[%emt 0:00:06]} Rf1+ {[%emt 0:00:05]} 73. Ke3 {[%emt 0:00:07]} Rg1 {[%emt 0:00:05]} 74. Kf3 {[%emt 0:00:36]} ({Don't take} 74. Rc7+ $6 Ke6 $16) 74... Kf8 {[%emt 0:01:34]} 75. Kf4 {[%emt 0:00:13]} Rf1+ {[%emt 0:00:36]} 76. Ke5 {[%emt 0:00:06]} Re1+ {[%emt 0:01:59]} 77. Kd6 {[%emt 0:00:06]} Rd1+ {[%emt 0:01:00]} 78. Ke6 {[%emt 0:00:20]} Re1+ $1 {[%emt 0:00:04]} 79. Re5 {[%emt 0:00:19]} Ra1 {[%emt 0:00:56]} 80. Re4 {[%emt 0:00:21]} Rb1 {[%emt 0:00:53]} 81. Rh4 {[%emt 0:00:32]} Re1+ {[%emt 0:00:11]} 82. Kd6 {[%emt 0:00:16]} Rd1+ {[%emt 0:00:05]} 83. Ke5 {[%emt 0:00:14]} Re1+ {[%emt 0:00:18]} 84. Re4 {[%emt 0:01:28]} Ra1 {[%emt 0:00:13]} 85. Rd4 {[%emt 0:00:48]} Re1+ {[%emt 0:00:10]} 86. Kf4 {[%emt 0:00:24]} Rf1+ {[%emt 0:00:07]} 87. Ke4 {[%emt 0:00:14]} Re1+ {[%emt 0:00:15]} 88. Kf3 {[%emt 0:00:05]} Rg1 {[%emt 0:00:05]} 89. Rg4 {[%emt 0:02:04]} Rf1+ {[%emt 0:00:06]} 90. Ke2 {[%emt 0:00:29]} Rf5 {[%emt 0:00:12]} 91. Ke3 {[%emt 0:01:14]} 1/2-1/2